Cogmind - Beta 13 @@@ ROGUE MODE // 2024.07.07 @ 20:28:50 Player: visilii Result: Destroyed by as-78392 with Assembled Heavy Rifle Performance ------------- Evolutions (1) 500 Regions Visited (3) 600 Robots Destroyed (50) 250 Value Destroyed (1154) 1154 Prototype IDs (7) 140 Alien Tech Used (0) 0 Bonus (21) 21 TOTAL SCORE: 2665 Bonus ------- High Alert Combat Kills 21 Cogmind --------- Core Integrity 0/400 Matter 253/300 Energy 32/100 System Corruption 15% Temperature Warning (366) Movement Core (450) Ox8 Location -9/Mines Parts ------- > --- POWER (1) -------- (None) > --- PROPULSION (3) --- (None) > --- UTILITY (3) ------ Large Storage Unit > --- WEAPON (2) ------- Enhanced Autogun Flail > --- INVENTORY (15) --- Heavy Ion Engine Heavy Ion Engine Aluminum Leg Aluminum Leg Small Storage Unit High-capacity Matter Pod (97) Advanced Targeting Computer Field Recycling Unit (0) Heavy Particle Gun Improved Assault Rifle Improved Assault Rifle Improved Light Cannon Peak State ------------ > --- POWER ------------ Cooled Ion Engine > --- PROPULSION ------- Light Treads Light Treads Aluminum Leg > --- UTILITY ---------- Large Storage Unit Weight Redist. System Salvage Targeting Computer > --- WEAPON ----------- Heavy Particle Gun Heavy Particle Gun > --- INVENTORY -------- Heavy Ion Engine Heavy Ion Engine Aluminum Leg Aluminum Leg Small Storage Unit High-capacity Matter Pod Advanced Targeting Computer Light Armor Plating Trap Extractor Field Recycling Unit Improved Assault Rifle Improved Assault Rifle Enhanced Autogun Flak Cannon Flail [Rating: 22] Favorites ----------- Power Cooled Ion Engine Engine Cooled Ion Engine Propulsion Aluminum Leg Treads Light Treads Leg Aluminum Leg Flight Unit Improved Flight Unit Utility Salvage Targeting Computer Device Structural Scanner Storage Small Storage Unit Processor Salvage Targeting Computer Protection Medium Armor Plating Weapon Improved Assault Rifle Energy Gun Heavy Particle Gun Ballistic Gun Improved Assault Rifle Ballistic Cannon Flak Cannon Launcher Grenade Launcher Special Weapon Welding Torch Impact Weapon Flail Build | -11 -10 -9 -9 ------- Run | Yrd Mat Mat Min Slots Evolved 2 | . . 2 . Power . | . . . . Propulsion 1 | . . 1 . Utility 1 | . . 1 . Weapon . | . . . . Parts Attached 65 | 7 9 45 4 Power 6 | 1 1 4 . Engine 6 | 1 1 4 . Core . | . . . . Reactor . | . . . . Propulsion 21 | 2 2 17 . Treads 5 | . . 5 . Leg 15 | 2 2 11 . Wheel . | . . . . Hover . | . . . . Flight 1 | . . 1 . Utility 10 | 1 3 5 1 Device 2 | . 1 1 . Storage 5 | 1 2 2 . Processor 2 | . . 2 . Hackware . | . . . . Protection 1 | . . . 1 Artifact . | . . . . Weapon 28 | 3 3 19 3 Energy Gun 5 | 1 1 3 . Energy Cannon . | . . . . Ballistic Gun 16 | 2 1 12 1 Ballistic Cannon 2 | . . 1 1 Launcher 2 | . . 2 . Special Weapon 2 | . 1 1 . Impact Weapon 1 | . . . 1 Slashing Weapon . | . . . . Piercing Weapon . | . . . . Special Melee Weapon . | . . . . Unidentified Prototypes 7 | . . 7 . Parts Lost 14 | . 1 5 8 Power 2 | . . 1 1 Propulsion 6 | . . 3 3 Utility 3 | . . . 3 Weapon 3 | . 1 1 1 Highest Loss Streak 8 | . 1 2 8 To Critical Strikes . | . . . . Average Slot Usage (%) 96 | . 91 98 94 Engine 11 | . 14 10 9 Treads 6 | . . 8 19 Leg 24 | . 28 24 11 Device 7 | . 7 7 9 Storage 11 | . 14 11 11 Processor 10 | . . 13 9 Energy Gun 3 | . 7 1 20 Ballistic Gun 18 | . 17 19 . Naked Turns . | . . . . Heaviest Build 37 | 12 13 37 34 Greatest Support 46 | 20 20 46 46 Greatest Overweight (x) 1 | . . 1 . Average Overweight (x) . | . . . . Largest Inventory Capacity 15 | 8 15 15 15 Average Capacity 11 | 7 8 12 15 Most Carried 15 | 5 8 15 15 Average Carried 9 | 3 6 10 14 Final Capacity 15 | 8 8 15 15 Final Carried 15 | 4 8 15 12 Class Distribution -------------------- 64% | Mutant 35% | Scavenger-Mutant Dominant Class ---------------- Mutant | -10/Materials Mutant | -9/Materials Mutant | -9/Mines Resources | -11 -10 -9 -9 ----------- Run | Yrd Mat Mat Min Matter Collected 1599 | 229 179 1191 . Remotely . | . . . . Salvage Created 1539 | . 257 1213 69 Parts 113 | . 22 91 . Haulers Intercepted 2 | . . 2 . Recyclers Shooed . | . . . . Parts Field Recycled . | . . . . Retrieved Matter . | . . . . Parts Self-Destructed . | . . . . Prevented . | . . . . Kills | -11 -10 -9 -9 ------- Run | Yrd Mat Mat Min Combat Hostiles Destroyed 47 | . 9 32 6 Guns 41 | . 9 27 5 Cannons 3 | . . 2 1 AOE 3 | . . 3 . Classes Destroyed 6 | . 3 2 1 Hauler 2 | . . 2 . Watcher 7 | . 2 5 . Swarmer 19 | . 5 14 . Grunt 15 | . 4 11 . Sentry 7 | . . 7 . Assembled 6 | . . . 6 Best Kill Streak 6 | . 3 6 6 Combat Bots Only 6 | . 3 4 6 Max Kills in Single Turn 2 | . 1 2 2 Gunslinging . | . . . . Exploded 1 | . . 1 . Melee . | . . . . Uniques/NPCs Destroyed . | . . . . Combat | -11 -10 -9 -9 -------- Run | Yrd Mat Mat Min Hostile Shots Fired 319 | . 55 164 100 Missed 70 | . 12 40 18 Damage Taken 2937 | . 372 1368 1197 Core 454 | . 46 204 204 Absorbed by Shields . | . . . . Core Remaining (%) 90 | 100 81 . . Volleys Fired 153 | . 38 102 13 Largest 2 | . 2 2 2 Hottest 110 | . 60 78 110 Shots Fired 281 | . 64 195 22 Gun 259 | . 63 178 18 Cannon 13 | . . 9 4 Launcher 8 | . . 8 . Special 1 | . 1 . . Kinetic 224 | . 42 176 6 Thermal 49 | . 22 11 16 Explosive 8 | . . 8 . Electromagnetic . | . . . . Robot Hit Streak 14 | . 6 14 4 Robot Miss Streak 10 | . 5 10 5 Penetration Max . | . . . . Secondary Targets 5 | . . 4 1 Max Gunslinging Chain 1 | . . 1 1 Shots Hit Robots 171 | . 33 125 13 Core Hits 97 | . 19 63 15 Critical Kills . | . . . . Critical Parts Destroyed . | . . . . Critical Strikes 1 | . . 1 . Burn 1 | . . 1 . Melee Attacks . | . . . . Impact . | . . . . Slashing . | . . . . Piercing . | . . . . Sneak Attacks . | . . . . Combat Hostiles . | . . . . Follow-up Attacks . | . . . . Damage Inflicted 2621 | . 315 2001 305 Guns 2063 | . 313 1551 199 Cannons 243 | . . 137 106 Explosions 313 | . . 313 . Melee . | . . . . Ramming . | . . . . Kinetic 1843 | . 164 1539 140 Thermal 465 | . 151 149 165 Explosive 313 | . . 313 . Electromagnetic . | . . . . Impact . | . . . . Slashing . | . . . . Piercing . | . . . . Highest Corruption 15 | . . . 15 Average Corruption 11 | . . . 11 Corruption Purged . | . . . . Corruption Blocked . | . . . . Effects 2 | . . . 2 Parts Rejected 1 | . . . 1 Data Loss (minor) 1 | . . . 1 Overload Shots . | . . . . Overflow Damage . | . . . . Projectiles . | . . . . Explosions . | . . . . Melee . | . . . . Knockbacks 13 | . . 3 10 Impact . | . . . . Kinetic 13 | . . 3 10 Secondary . | . . . . Self-Inflicted Damage . | . . . . Shots . | . . . . Rammed . | . . . . Targets Rammed . | . . . . Kicked . | . . . . Crushed . | . . . . Highest Temperature 386 | . 64 273 386 Average Temperature 65 | . 22 28 245 Received Heat Transfer 758 | . 36 462 260 Effects 3 | . . . 3 Shutdowns 1 | . . . 1 Energy Bleed 1 | . . . 1 Short Circuit 1 | . . . 1 Siege Activations . | . . . . Robots Corrupted . | . . . . Combat Hostiles . | . . . . Parts Fried . | . . . . Impact Corruptions . | . . . . Robots Melted . | . . . . Combat Hostiles . | . . . . Parts Melted 4 | . 1 3 . Heat Transferred 1053 | . 350 370 333 Parts Sabotaged . | . . . . Parts Stolen . | . . . . Parts Stripped . | . . . . Power Chain Reactions . | . . . . Alert | -11 -10 -9 -9 ------- Run | Yrd Mat Mat Min Peak Influence 572 | . 230 572 222 Initial 222 | . . 40 222 Average 250 | . 92 305 212 Maximum Alert Level 2 | . 1 2 1 Low Security (%) 39 | 100 91 23 17 Level 1 50 | . 8 62 83 Level 2 10 | . . 13 . Level 3 . | . . . . Level 4 . | . . . . Level 5 . | . . . . High Security . | . . . . Max Security . | . . . . Squads Dispatched 4 | . 2 2 . Investigation 2 | . 1 1 . Extermination . | . . . . Reinforcement 2 | . 1 1 . Assault . | . . . . Garrison . | . . . . Intercept . | . . . . Searches Triggered . | . . . . Construction Impeded . | . . . . Haulers Reinforced . | . . . . Active Scanning Responses . | . . . . Cargo Convoy Interrupts . | . . . . Stealth | -11 -10 -9 -9 --------- Run | Yrd Mat Mat Min Distress Signals 6 | . 1 5 . Communications Jammed . | . . . . Distress Signals . | . . . . Times Spotted 82 | . 17 45 20 Peak Tracking Total 16 | . 3 6 16 Tactical Retreats 5 | . 1 3 1 Traps | -11 -10 -9 -9 ------- Run | Yrd Mat Mat Min Traps Triggered 2 | . 1 1 . Indirectly . | . . . . Trap Hack Attempts . | . . . . Triggered . | . . . . Disarmed 12 | . 6 6 . Reprogrammed 3 | . 3 . . Reused . | . . . . Traps Extracted . | . . . . Installed . | . . . . Triggered . | . . . . Machines | -11 -10 -9 -9 ---------- Run | Yrd Mat Mat Min Machines Disabled 1 | . . 1 . Max in Single Turn 1 | . . 1 . Machines Repaired . | . . . . Machines Dismantled . | . . . . Machines Sabotaged . | . . . . Overloaded Fab Kills . | . . . . Hacking | -11 -10 -9 -9 --------- Run | Yrd Mat Mat Min Machines Accessed 8 | . 2 6 . Terminals 6 | . 2 4 . Fabricators . | . . . . Repair Stations 1 | . . 1 . Recycling Units 1 | . . 1 . Scanalyzers . | . . . . Garrison Access . | . . . . Total Hacks 27 | . 9 18 . Successful 18 | . 5 13 . Failed 9 | . 4 5 . Catastrophic 2 | . 1 1 . Database Lockouts . | . . . . Manual . | . . . . Terminals 20 | . 9 11 . Fabricators . | . . . . Repair Stations 1 | . . 1 . Recycling Units 6 | . . 6 . Scanalyzers . | . . . . Garrison Access . | . . . . Terminal Hacks 12 | . 5 7 . Record 1 | . . 1 . Locate Traps 5 | . 2 3 . Disarm Traps 2 | . 1 1 . Reprogram Traps 1 | . 1 . . Dispatch Records 1 | . 1 . . Hauler Manifests 1 | . . 1 . Zone Layout 1 | . . 1 . Fabricator Hacks . | . . . . Repair Station Hacks 1 | . . 1 . Scan Component 1 | . . 1 . Recycling Unit Hacks 5 | . . 5 . Recycle Component 1 | . . 1 . Process 1 | . . 1 . Report Inventory 2 | . . 2 . Retrieve Matter 1 | . . 1 . Scanalyzer . | . . . . Garrison Access Hacks . | . . . . Unauthorized Hacks . | . . . . Terminals . | . . . . Fabricators . | . . . . Repair Stations . | . . . . Recycling Units . | . . . . Scanalyzers . | . . . . Garrison Access . | . . . . Data Cores Recovered . | . . . . Used . | . . . . Hacking Detections 5 | . 2 3 . Full Trace Events . | . . . . Feedback Events . | . . . . Feedback Blocked . | . . . . Robot Schematics Acquired . | . . . . Robots Built . | . . . . Authchips . | . . . . Time . | . . . . Total Robot Build Rating . | . . . . Part Schematics Acquired . | . . . . Parts Built . | . . . . Authchips . | . . . . Time . | . . . . Total Part Build Rating . | . . . . Parts Repaired . | . . . . Time . | . . . . Parts Recycled 1 | . . 1 . Recycled Matter 20 | . . 20 . Retrieved Matter 20 | . . 20 . Retrieved Components . | . . . . Parts Scanalyzed . | . . . . Part Schematics Acquired . | . . . . Parts Damaged . | . . . . Bothacking | -11 -10 -9 -9 ------------ Run | Yrd Mat Mat Min Used RIF Installer . | . . . . Robots Hacked . | . . . . Non-combat . | . . . . Combat . | . . . . Robot Hacks Applied . | . . . . Relay Couplers Released . | . . . . Fabnet Peak Effective % . | . . . . Robots Rewired . | . . . . Allies Hacked . | . . . . Hacks Repelled . | . . . . Allies | -11 -10 -9 -9 -------- Run | Yrd Mat Mat Min Total Allies . | . . . . Largest Group . | . . . . Highest-Rated Group . | . . . . Highest-Rated Ally . | . . . . Total Orders . | . . . . Ally Attacks . | . . . . Total Damage . | . . . . Kills . | . . . . Allies Corrupted . | . . . . Allies Melted . | . . . . Intel | -11 -10 -9 -9 ------- Run | Yrd Mat Mat Min Robot Analysis Total . | . . . . Derelict Logs Recovered . | . . . . Drone Launches . | . . . . Drone Recoveries . | . . . . Exploration | -11 -10 -9 -9 ------------- Run | Yrd Mat Mat Min Turns Passed 2737 | 68 572 1997 100 Spaces Moved 1443 | 47 354 1003 39 Core 8 | 8 . . . Treads 384 | . . 345 39 Legs 1051 | 39 354 658 . Wheels . | . . . . Hover . | . . . . Flight . | . . . . Fastest Speed 50 | 50 120 120 160 Average Speed 138 | 108 120 145 160 Slowest Speed 240 | 120 120 240 160 Overloaded Moves . | . . . . Propulsion Burnouts . | . . . . Robots Hopped . | . . . . Cave-ins Triggered . | . . . . Exploration Rate (%) 39 | 5 58 82 14 Regions Visited 3 Branch Regions 1 Pre-discovered Areas . | . . . . Known Exits Taken . | . . . . Unknown Exits Taken 3 | 1 1 1 . Scrap Searched . | . . . . Spaces Dug . | . . . . Terrain Destroyed 24 | . . 24 . Melee . | . . . . Projectile . | . . . . AOE 24 | . . 24 . Terrain Rammed . | . . . . Walls Destroyed . | . . . . Machines Disabled . | . . . . Actions | -11 -10 -9 -9 --------- Run | Yrd Mat Mat Min Total 1916 | 63 443 1354 56 Wait 167 | . 31 136 . Move 1440 | 46 353 1002 39 Hop . | . . . . Pick Up 61 | 10 9 42 . Fast Attach . | . . . . Attach 20 | 6 2 9 3 Detach 1 | . . 1 . Swap 45 | 1 7 36 1 Drop 29 | . 3 26 . Fire 153 | . 38 102 13 Melee . | . . . . Ram . | . . . . Kick . | . . . . Crush . | . . . . Escape Stasis . | . . . . Rewire . | . . . . Trap . | . . . . Miscellaneous . | . . . . Route ------- -11/Scrapyard -10/Materials (discovered 3 exits: *Mat x3) -9/Materials (discovered 4 exits: [*Mat x2] / [*Min x2]) -9/Mines History --------- Turn | Location | Event 10 | -11/Scrapyard | Discovered new exit (range 15) 69 | -11/Scrapyard | Entered Materials 329 | -10/Materials | Build established: Mutant 385 | -10/Materials | Discovered new exit (range 16) 504 | -10/Materials | Discovered new exit (range 13) 591 | -10/Materials | Discovered new exit (range 13) 641 | -10/Materials | Entered another Materials area 641 | -9/Materials | Evolved 2 slots: Propulsion x1, Utility x1 1264 | -9/Materials | Discovered new exit (range 13) 1518 | -9/Materials | Build established: Scavenger-Mutant 1965 | -9/Materials | Discovered new exit (range 4) 2168 | -9/Materials | Build established: Mutant 2286 | -9/Materials | Discovered new exit (range 9) 2353 | -9/Materials | Core integrity fell below 50% 2469 | -9/Materials | Discovered new exit (range 10) 2638 | -9/Materials | Entered Mines 2694 | -9/Mines | Assembled infested the area 2721 | -9/Mines | System corruption reached 10% 2733 | -9/Mines | Core integrity fell below 20% 2738 | -9/Mines | Destroyed by as-78392 with Assembled Heavy Rifle Last Messages --------------- as-55597 destroyed. as-00949 knocked back. as-43177 destroyed. Overheating: Energy bleed (-14). Hvy. Particle Gun broken. Overheating: Short circuit. as-33902 knocked back. as-13171 knocked back. as-27683 knocked back. Lgt. Treads destroyed. Aluminum Leg destroyed. as-40206 knocked back. as-00949 knocked back. as-40206 knocked back. Flak Cannon destroyed. System corrupted: Broken Hvy. Particle Gun rejected. as-40206 destroyed. Med. Armor Plating destroyed. as-33902 destroyed. Map ----- +----------------------------------------------------+ | | | | | | | | | | | | | | | | | | | | | | | ??????????????????????????????????? | | ??????????????????????????????????? | | ??????????????????????????????????? | | ????????????????????? ????????????? | | ???????????????????? ????????????? | | ?????????????????## ?????????????? | | ????????????????# ??????????????? | | ??????????????? ???????????????? | | ??????????????? #????????????????? | | ?????????????? #?????????????????? | | ????????????? ##????????????????? | | ???????????? a%#????????????????? | | ?????#######aaa #????????????????? | | ?????# %%aa ##???????????????? | | ?????# @%%% % a ????????? | | ?????# ##### aaa ######???????????? | | ?????# #????# ##????????????????? | | ?????# #?????####?????????????????? | | ?????# #??????????????????????????? | | ?????# #??????????????????????????? | | ?????# #??????????????????????????? | | ?????# #???########???????????????? | | ?????# #???# #???????????????? | | ?????# #???# #???????????????? | | ?????# #???# #???????????????? | | ?????# #???# #???????????????? | | ?????# #???# #???????????????? | | ?????# #???### ###???????????????? | | ?????# ####### #?????????????????? | | ?????# ## #?????????????????? | | ?????##### ## #?????????????????? | | ?????????# ## #?????????????????? | | ??????#### ## #?????????????????? | | ??????# # #?????????????????? | | ?????## #?????????????????? | | ?????# #?????????????????? | | ?????# #?????????????????? | | ?????## #?????????????????? | | ??????### #?????????????????? | +----------------------------------------------------+ Best States ------------- Heat Dissipation 28 Energy Generation 14 Energy Capacity 280 Matter Stores 300 Matter Capacity 300 Sight Range 16 Terrain Scan Density 10 Additional Mass Support 6 Evasion (%) 55 Recoil Reduction 2 Salvage Targeting 1 Item Schematics ----------------- None Robot Schematics ------------------ None Fabricated ------------ Nothing Alien Tech Used ----------------- None Achievements -------------- None Challenges ------------ None Game ------ Seed AssaultLightpackLance Manual? 0 Play Time 00:45:03 Cumulative 8.5 hours Start 2024.07.07 @ 19:44:59 End 2024.07.07 @ 20:28:50 Sessions 1 Manual Loads 0 Difficulty Rogue Special Mode None Game No. 9 Rogue 9 Adventurer 0 Explorer 0 Win Type - Total 0 Types 0/0/0/0/0/0/0/0/0 Lore% 14 Gallery% 13 Achievement% 10 Wizard Run 0 Options --------- Layout 1 ASCII 0 Keyboard 0 Movement Numpad Keybinds 0 Fullscreen 1 Font 24/Smallcaps Map View 50x35 Zoom Use 0% Tactical HUD 0 Map Filters NONE Filters NONE Steam 0 RUN: 468bfa59-7602-40eb-819b-2a7107c05ddc